Cogmind - Beta 13 X1 @@@ ROGUE MODE // 2023.11.05 @ 22:35:20 Player: Sandwich Result: Destroyed by Hellfire Trap Performance ------------- Evolutions (9) 4500 Regions Visited (16) 3200 Robots Destroyed (117) 585 Value Destroyed (5174) 5174 Prototype IDs (8) 160 Alien Tech Used (0) 0 Bonus (488) 488 TOTAL SCORE: 14107 Bonus ------- High Alert Combat Kills 64 Entered Garrisons 200 Entered DSFs 500 Friendly Fire -276 Cogmind --------- Core Integrity 0/1600 Matter 33/300 Energy 82/100 System Corruption 9% Temperature Cool (4) Movement Hovering (60) Location -1/Access Parts ------- > --- POWER (2) -------- (None) > --- PROPULSION (6) --- Combat Linear Gravjet > --- UTILITY (11) ----- (None) > --- WEAPON (6) ------- (None) > --- INVENTORY (5) ---- Quantum Reactor Advanced Terrain Scan Processor Improved Cloaking Device Advanced Hacking Suite Peak State ------------ > --- POWER ------------ Reinforced Fission Core Light Antimatter Reactor > --- PROPULSION ------- Medium Treads Spiked Medium Treads Armored Medium Treads Myomer Leg Myomer Leg Compact Wheel > --- UTILITY ---------- Advanced Cryofiber Web Advanced Heat Sink Advanced Cooling System Advanced Cooling System Coolant Injector Huge Storage Unit Improved Light Armor Plating > --- WEAPON ----------- Wave Gun Wave Gun Variable Charge Gun Variable Charge Gun Variable Charge Gun Variable Charge Gun > --- INVENTORY -------- Micro Fission Core Micro Antimatter Reactor Advanced Cryofiber Web Huge Storage Unit Compact Matter Pod Compact Matter Pod Improved Shock Absorption System High-powered Shock Rifle Wave Gun Wave Gun Wave Gun Rocket Array Rocket Array Rocket Array Rocket Array Rocket Array Rocket Array Rocket Array Rocket Array Rocket Array Rocket Array Rocket Array Rocket Array [Rating: 122] Favorites ----------- Power Reinforced Fission Core Engine Deuterium Engine Power Core Reinforced Fission Core Reactor Light Antimatter Reactor Propulsion Compact Wheel Treads Armored Medium Treads Leg Myomer Leg Wheel Compact Wheel Hover Unit Combat Linear Gravjet Utility Huge Storage Unit Device Advanced Cooling System Storage Huge Storage Unit Processor Transport Network Coupler Hackware Hacking Suite Protection Improved Light Armor Plating Weapon Variable Charge Gun Energy Gun Variable Charge Gun Energy Cannon Plasma Cannon Ballistic Gun Light Assault Rifle Launcher Rocket Array Slashing Weapon Power Sword Build | -11 -10 -10 -10 -8 -7 -7 -6 -5 -4 -4 -4 -3 -3 -2 -2 -1 ------- Run | Jun Mat Min Sub Mat Fac Sto Fac Fac Fac Upp Upp Res DSF Res Gar Acc Slots Evolved 18 | . . . . 4 2 . 2 2 2 . . 2 . 2 . 2 Power 1 | . . . . 1 . . . . . . . . . . . . Propulsion 4 | . . . . . . . 2 . . . . 2 . . . . Utility 9 | . . . . 1 2 . . 2 . . . . . 2 . 2 Weapon 4 | . . . . 2 . . . . 2 . . . . . . . Parts Attached 161 | 6 7 12 3 5 12 20 11 34 4 3 6 2 22 7 2 5 Power 22 | 1 1 3 1 . 2 4 1 3 1 . . . 2 2 1 . Engine 10 | 1 1 2 1 . 2 1 1 1 . . . . . . . . Core 7 | . . 1 . . . 3 . 2 . . . . 1 . . . Reactor 5 | . . . . . . . . . 1 . . . 1 2 1 . Propulsion 36 | 2 2 1 1 . . 5 4 6 1 . 2 2 6 3 . 1 Treads 9 | . . . . . . 2 3 1 1 . . 2 . . . . Leg 2 | . . . . . . . . . . . 2 . . . . . Wheel 15 | 2 2 1 1 . . 3 1 5 . . . . . . . . Hover 10 | . . . . . . . . . . . . . 6 3 . 1 Flight . | . . . . . . . . . . . . . . . . . Utility 47 | 1 3 . 1 1 5 4 5 11 . 2 3 . 8 2 . 1 Device 17 | . . . . . 3 . 3 5 . 2 2 . . 1 . 1 Storage 6 | 1 2 . 1 . . . . . . . . . 2 . . . Processor 2 | . 1 . . . . . . . . . . . . 1 . . Hackware 6 | . . . . . . . . . . . . . 6 . . . Protection 16 | . . . . 1 2 4 2 6 . . 1 . . . . . Artifact . | . . . . . . . . . . . . . . . . . Weapon 56 | 2 1 8 . 4 5 7 1 14 2 1 1 . 6 . 1 3 Energy Gun 36 | 1 . 4 . . 5 6 1 13 2 1 1 . 1 . 1 . Energy Cannon 1 | . . . . . . . . 1 . . . . . . . . Ballistic Gun 8 | 1 1 2 . 4 . . . . . . . . . . . . Ballistic Cannon . | . . . . . . . . . . . . . . . . . Launcher 8 | . . 2 . . . 1 . . . . . . 5 . . . Special Weapon . | . . . . . . . . . . . . . . . . . Impact Weapon . | . . . . . . . . . . . . . . . . . Slashing Weapon 3 | . . . . . . . . . . . . . . . . 3 Piercing Weapon . | . . . . . . . . . . . . . . . . . Special Melee Weapon . | . . . . . . . . . . . . . . . . . Unidentified Prototypes 7 | . . . . . 2 5 . . . . . . . . . . Corrupted Parts 4 | . 1 . . . . . . 2 . . . . . . 1 . System Corruption 7 | . 3 . . . . . . 3 . . . . . . 1 . Parts Lost 74 | . 2 7 3 . . . 1 21 . 2 3 . 19 2 13 1 Power 11 | . . 2 1 . . . . 3 . . . . 2 1 2 . Propulsion 16 | . 1 1 1 . . . . 4 . 1 . . 5 . 3 . Utility 22 | . . 1 . . . . . 6 . 1 2 . 5 1 6 . Weapon 25 | . 1 3 1 . . . 1 8 . . 1 . 7 . 2 1 Highest Loss Streak 19 | . 1 3 3 . . . 1 4 . 1 2 . 19 1 12 1 To Critical Strikes . | . . . . . . . . . . . . . . . . . Average Slot Usage (%) 85 | . 90 85 71 80 92 96 92 94 84 88 92 96 72 78 54 1 Engine 4 | . 14 10 12 9 11 7 6 3 . . . . . . . . Core 3 | . . . . . . 5 6 6 5 5 5 4 3 . . . Reactor 1 | . . . . . . . . . 1 5 5 4 3 7 1 . Treads 3 | . . . . . . . 13 4 4 5 5 10 5 . . . Wheel 12 | . 26 27 26 18 15 12 5 15 10 9 5 4 1 . . . Hover 1 | . . . . . . . . . . . . . 5 25 21 1 Device 13 | . . . . . 11 15 13 20 21 21 24 23 13 5 2 . Storage 6 | . 14 14 14 9 7 7 6 5 5 5 5 4 3 . . . Hackware 1 | . . . . . . . . . . . . . 3 26 20 . Protection 6 | . . . . 9 15 14 13 12 5 5 4 4 1 . . . Energy Gun 19 | . 14 10 3 . 11 29 26 17 31 31 30 28 15 4 4 . Ballistic Gun 4 | . 14 6 . 35 18 . . . . . . . . . . . Launcher 1 | . . 8 14 . . . . . . . . . 6 5 . . Naked Turns 230 | . . . . . . . . . . . . . . . 7 223 Heaviest Build 165 | 12 48 48 88 110 122 120 128 157 164 165 154 153 153 50 20 3 Greatest Support 84 | 32 32 24 24 24 24 40 68 52 26 26 16 16 84 84 70 14 Greatest Overweight (x) 10 | . 2 3 6 4 5 9 4 5 6 10 9 9 9 . . . Average Overweight (x) 3 | . . 1 3 4 4 3 3 3 5 6 9 9 2 . . . Largest Inventory Capacity 25 | 8 20 20 25 25 25 25 25 25 25 25 25 25 25 5 5 5 Average Capacity 22 | 6 17 20 24 25 25 25 25 25 25 25 25 25 17 5 5 5 Most Carried 25 | 4 20 20 24 25 25 25 25 25 25 25 24 24 23 5 5 5 Average Carried 21 | 1 12 19 23 23 24 24 24 24 23 24 22 22 15 5 2 3 Final Capacity 25 | 8 20 20 25 25 25 25 25 25 25 25 25 25 5 5 5 5 Final Carried 25 | 4 20 20 24 25 25 25 25 25 25 24 23 23 5 5 . 4 Class Distribution -------------------- 31% | Scavenger-Executioner 26% | Scavenger-Tank 19% | Mutant 14% | Tank 5% | Wizard-Mutant Dominant Class ---------------- Mutant | -10/Materials Mutant | -10/Mines Mutant | -10/Subcaves Tank | -8/Materials Scavenger-Tank | -7/Factory Scavenger-Tank | -7/Storage Tank | -6/Factory Scavenger-Tank | -5/Factory Scavenger-Executioner | -4/Factory Scavenger-Executioner | -4/Upper Caves Scavenger-Executioner | -4/Upper Caves Scavenger-Executioner | -3/Research Scavenger-Executioner | -3/DSF Wizard-Mutant | -2/Research Wizard-Mutant | -2/Garrison Mutant | -1/Access Resources | -11 -10 -10 -10 -8 -7 -7 -6 -5 -4 -4 -4 -3 -3 -2 -2 -1 ----------- Run | Jun Mat Min Sub Mat Fac Sto Fac Fac Fac Upp Upp Res DSF Res Gar Acc Matter Collected 2183 | 184 204 193 65 433 140 220 110 350 50 35 79 . 14 71 35 . Remotely . | . . . . . . . . . . . . . . . . . Salvage Created 5759 | . 220 169 364 228 193 576 705 2068 124 182 513 . 415 2 . . Parts 231 | . 14 13 23 17 14 19 23 72 5 3 18 . 8 2 . . Haulers Intercepted 3 | . 2 . . . . 1 . . . . . . . . . . Recyclers Shooed 4 | . 1 . . . . . . 3 . . . . . . . . Parts Field Recycled . | . . . . . . . . . . . . . . . . . Retrieved Matter . | . . . . . . . . . . . . . . . . . Parts Self-Destructed 33 | . . . 4 . . . . . . 13 16 . . . . . Prevented 1 | . . . . . . . . . . . 1 . . . . . Kills | -11 -10 -10 -10 -8 -7 -7 -6 -5 -4 -4 -4 -3 -3 -2 -2 -1 ------- Run | Jun Mat Min Sub Mat Fac Sto Fac Fac Fac Upp Upp Res DSF Res Gar Acc Combat Hostiles Destroyed 99 | . 4 8 10 8 3 8 12 29 1 2 6 . 8 . . . Guns 60 | . 4 4 . 8 3 5 11 17 1 1 6 . . . . . Cannons 8 | . . . . . . . . 8 . . . . . . . . AOE 23 | . . 4 10 . . 1 . . . . . . 8 . . . Classes Destroyed 17 | . 4 . 1 1 . 3 3 1 . 1 . . 2 1 . . Worker 5 | . . . . . . 1 . 3 1 . . . . . . . Hauler 3 | . 2 . . . . 1 . . . . . . . . . . Recycler 5 | . 1 . . . . 2 . 2 . . . . . . . . Carrier 1 | . . . . . . . . . . . . . 1 . . . Operator 1 | . . . . . . . . . . . . . . 1 . . Watcher 2 | . . . . . . . 1 . 1 . . . . . . . Swarmer 18 | . 3 5 . 5 . . . 5 . . . . . . . . Grunt 33 | . 1 3 . 1 . 4 10 5 . . 6 . 3 . . . Brawler 3 | . . . . . . . 1 2 . . . . . . . . Duelist 1 | . . . . . . 1 . . . . . . . . . . Sentry 14 | . . . . 2 3 2 . 6 . 1 . . . . . . Specialist 3 | . . . . . . . . . . . . . 3 . . . Hunter 5 | . . . . . . . 1 3 . . . . 1 . . . Programmer 9 | . . . . . . 1 . 7 1 . . . . . . . Heavy 2 | . . . . . . . . 1 . . . . 1 . . . Behemoth 1 | . . . . . . . . . . 1 . . . . . . Subdweller 10 | . . . 10 . . . . . . . . . . . . . Decomposer 2 | . . . . . . . . . . . 2 . . . . . Thug 1 | . . . 1 . . . . . . . . . . . . . Best Kill Streak 10 | . 3 3 10 3 2 4 4 7 2 1 3 . 7 1 . . Combat Bots Only 10 | . 3 3 10 3 2 3 4 7 1 1 3 . 6 . . . Max Kills in Single Turn 3 | . 2 1 3 1 1 2 1 1 1 1 1 . 3 1 . . Gunslinging 1 | . 1 . . . . . . . . . . . . . . . Exploded 3 | . . 1 3 . . 1 . . . . . . 3 . . . Melee . | . . . . . . . . . . . . . . . . . Uniques/NPCs Destroyed . | . . . . . . . . . . . . . . . . . Combat | -11 -10 -10 -10 -8 -7 -7 -6 -5 -4 -4 -4 -3 -3 -2 -2 -1 -------- Run | Jun Mat Min Sub Mat Fac Sto Fac Fac Fac Upp Upp Res DSF Res Gar Acc Damage Taken 14308 | . 284 734 155 198 225 541 576 3536 61 626 860 . 2174 506 1980 1852 Core 3772 | . 74 130 36 23 . 49 57 340 . . 78 . 271 73 1035 1606 Absorbed by Shields 31 | . . . . . . . . . . . . . . . . 31 Core Remaining (%) 71 | 100 . . 4 95 . 93 93 66 . . 93 . 79 . 23 . Volleys Fired 239 | . 17 28 4 13 7 21 25 82 4 7 12 . 10 . 9 . Largest 6 | . 2 2 1 4 4 4 4 4 6 6 6 . 4 . 1 . Hottest 462 | . 70 70 30 93 188 241 241 323 456 456 462 . 180 . 81 . Shots Fired 805 | . 34 51 5 52 28 77 100 293 24 42 67 . 23 . 9 . Gun 720 | . 34 45 . 52 28 77 100 241 24 42 67 . 1 . 9 . Cannon 52 | . . . . . . . . 52 . . . . . . . . Launcher 33 | . . 6 5 . . . . . . . . . 22 . . . Special . | . . . . . . . . . . . . . . . . . Kinetic 118 | . 17 23 . 52 26 . . . . . . . . . . . Thermal 617 | . 17 22 . . 1 73 92 269 24 42 67 . 1 . 9 . Explosive 33 | . . 6 5 . . . . . . . . . 22 . . . Electromagnetic 37 | . . . . . 1 4 8 24 . . . . . . . . Robot Hit Streak 25 | . 6 8 5 10 10 16 15 25 4 16 5 . 17 . 3 . Robot Miss Streak 5 | . 2 3 . 4 3 3 4 5 2 2 3 . 3 . 2 . Penetration Max . | . . . . . . . . . . . . . . . . . Secondary Targets 9 | . 1 1 . . 1 1 . 2 . . 3 . . . . . Max Gunslinging Chain 1 | . 1 1 . . 1 1 . 1 . . 1 . . . . . Shots Hit Robots 539 | . 23 31 5 26 22 54 72 201 11 35 36 . 20 . 3 . Core Hits 334 | . 11 16 20 17 12 26 49 79 5 7 22 . 68 . 2 . Critical Kills 2 | . . . . 1 1 . . . . . . . . . . . Critical Parts Destroyed . | . . . . . . . . . . . . . . . . . Critical Strikes 11 | . 1 . . 1 1 . 2 6 . . . . . . . . Burn 9 | . 1 . . . . . 2 6 . . . . . . . . Destroy 2 | . . . . 1 1 . . . . . . . . . . . Melee Attacks 3 | . . . . . . . . . . . . . . . . 3 Impact . | . . . . . . . . . . . . . . . . . Slashing 3 | . . . . . . . . . . . . . . . . 3 Piercing . | . . . . . . . . . . . . . . . . . Sneak Attacks . | . . . . . . . . . . . . . . . . . Combat Hostiles . | . . . . . . . . . . . . . . . . . Follow-up Attacks . | . . . . . . . . . . . . . . . . . Damage Inflicted 14602 | . 274 609 1159 270 260 1299 1495 4739 296 845 797 . 2282 134 127 16 Guns 9572 | . 274 281 . 270 260 1242 1495 3670 296 845 797 . 23 . 119 . Cannons 1069 | . . . . . . . . 1069 . . . . . . . . Explosions 3937 | . . 328 1159 . . 57 . . . . . . 2259 134 . . Melee . | . . . . . . . . . . . . . . . . . Ramming 24 | . . . . . . . . . . . . . . . 8 16 Kinetic 745 | . 134 124 . 270 217 . . . . . . . . . . . Thermal 9524 | . 140 157 . . 33 1209 1349 4556 296 845 797 . 23 . 119 . Explosive 3937 | . . 328 1159 . . 57 . . . . . . 2259 134 . . Electromagnetic 372 | . . . . . 10 33 146 183 . . . . . . . . Impact . | . . . . . . . . . . . . . . . . . Slashing . | . . . . . . . . . . . . . . . . . Piercing . | . . . . . . . . . . . . . . . . . Highest Corruption 17 | . 3 3 3 . . . . 17 2 2 2 . 4 1 7 9 Average Corruption 5 | . 3 3 3 . . . . 14 1 2 2 . 3 1 2 4 Corruption Purged . | . . . . . . . . . . . . . . . . . Corruption Blocked . | . . . . . . . . . . . . . . . . . Effects 126 | . 9 12 7 . . . . 60 2 20 7 . 3 . 4 2 Message Errors 28 | . 2 2 1 . . . . 17 2 2 1 . . . . 1 Matter Fused 24 | . 3 3 1 . . . . 9 . 1 3 . . . 3 1 Heat Flow Errors 18 | . 1 1 2 . . . . 5 . 6 2 . 1 . . . Energy Discharges 12 | . 1 2 1 . . . . 4 . 1 1 . 1 . 1 . Parts Rejected 1 | . . 1 . . . . . . . . . . . . . . Parts Fused 1 | . . . . . . . . . . 1 . . . . . . Data Loss (minor) 21 | . . 1 1 . . . . 12 . 7 . . . . . . Data Loss (major) 7 | . 2 . . . . . . 4 . . . . 1 . . . Misfires 7 | . . 1 1 . . . . 4 . 1 . . . . . . Alerts 2 | . . 1 . . . . . . . 1 . . . . . . Weapon Failures 5 | . . . . . . . . 5 . . . . . . . . Overload Shots . | . . . . . . . . . . . . . . . . . Overflow Damage 158 | . . 28 4 . . . . 12 . . . . 10 104 . . Projectiles 12 | . . . . . . . . 12 . . . . . . . . Explosions 146 | . . 28 4 . . . . . . . . . 10 104 . . Melee . | . . . . . . . . . . . . . . . . . Knockbacks . | . . . . . . . . . . . . . . . . . Impact . | . . . . . . . . . . . . . . . . . Kinetic . | . . . . . . . . . . . . . . . . . Secondary . | . . . . . . . . . . . . . . . . . Self-Inflicted Damage 557 | . . 146 . . . 46 . . . . . . 242 . 4 119 Shots 15 | . . 3 . . . 1 . . . . . . 10 . . 1 Rammed 4 | . . . . . . . . . . . . . . . 1 3 Targets Rammed 4 | . . . . . . . . . . . . . . . 1 3 Kicked . | . . . . . . . . . . . . . . . . . Crushed . | . . . . . . . . . . . . . . . . . Highest Temperature 264 | . 240 253 232 108 60 192 205 264 163 201 199 . 163 220 102 . Average Temperature 84 | . 41 70 112 48 20 108 115 94 81 96 117 . 76 63 41 . Received Heat Transfer 2031 | . 18 240 9 54 48 150 234 450 . 72 293 . 202 18 126 117 Effects 3 | . 1 . . . . . . . . 1 . . . 1 . . Energy Bleed 1 | . 1 . . . . . . . . . . . . . . . Interference 2 | . . . . . . . . . . 1 . . . 1 . . Siege Activations . | . . . . . . . . . . . . . . . . . Robots Corrupted . | . . . . . . . . . . . . . . . . . Combat Hostiles . | . . . . . . . . . . . . . . . . . Parts Fried . | . . . . . . . . . . . . . . . . . Impact Corruptions . | . . . . . . . . . . . . . . . . . Robots Melted 8 | . . . . . . 2 1 4 . 1 . . . . . . Combat Hostiles 8 | . . . . . . 2 1 4 . 1 . . . . . . Parts Melted 61 | . . . . . . 3 9 38 3 3 5 . . . . . Heat Transferred 17732 | . 481 386 . . 75 2486 3034 7977 407 1295 1369 . 37 . 185 . Parts Sabotaged . | . . . . . . . . . . . . . . . . . Parts Stolen . | . . . . . . . . . . . . . . . . . Parts Stripped . | . . . . . . . . . . . . . . . . . Power Chain Reactions . | . . . . . . . . . . . . . . . . . Missiles Intercepted . | . . . . . . . . . . . . . . . . . Alert | -11 -10 -10 -10 -8 -7 -7 -6 -5 -4 -4 -4 -3 -3 -2 -2 -1 ------- Run | Jun Mat Min Sub Mat Fac Sto Fac Fac Fac Upp Upp Res DSF Res Gar Acc Peak Influence 458 | . 114 275 . 287 108 293 307 458 244 . . 5 251 345 408 427 Initial 258 | . . 8 . 2 39 27 69 104 140 . . . . 141 258 214 Average 164 | . 44 131 . 118 55 157 200 271 193 . . . 120 170 320 278 Maximum Alert Level 2 | . . 1 . 1 . 1 1 2 1 . . . 1 1 2 2 Low Security (%) 58 | 100 100 75 . 95 100 75 41 11 67 . . 100 62 83 . . Level 1 40 | . . 24 . 4 . 24 58 86 32 . . . 37 16 98 96 Level 2 . | . . . . . . . . 2 . . . . . . 1 3 Level 3 . | . . . . . . . . . . . . . . . . . Level 4 . | . . . . . . . . . . . . . . . . . Level 5 . | . . . . . . . . . . . . . . . . . High Security . | . . . . . . . . . . . . . . . . . Max Security . | . . . . . . . . . . . . . . . . . Sterilizations 1 | . . . . . . . . . . . . . 1 . . . Squads Dispatched 19 | . 1 . . 1 1 . 1 11 . . . . 2 1 . 1 Investigation 2 | . . . . 1 . . . . . . . . . . . 1 Extermination 4 | . . . . . 1 . . 3 . . . . . . . . Reinforcement 7 | . 1 . . . . . 1 2 . . . . 2 1 . . Assault . | . . . . . . . . . . . . . . . . . Garrison 6 | . . . . . . . . 6 . . . . . . . . Intercept . | . . . . . . . . . . . . . . . . . Searches Triggered 1 | . . . . . . . . . . . . . . . . 1 Construction Impeded . | . . . . . . . . . . . . . . . . . Haulers Reinforced . | . . . . . . . . . . . . . . . . . Active Scanning Responses . | . . . . . . . . . . . . . . . . . Cargo Convoy Interrupts . | . . . . . . . . . . . . . . . . . Stealth | -11 -10 -10 -10 -8 -7 -7 -6 -5 -4 -4 -4 -3 -3 -2 -2 -1 --------- Run | Jun Mat Min Sub Mat Fac Sto Fac Fac Fac Upp Upp Res DSF Res Gar Acc Distress Signals 7 | . . . . . . 2 1 2 . . . . . 1 . 1 Communications Jammed . | . . . . . . . . . . . . . . . . . Distress Signals . | . . . . . . . . . . . . . . . . . Times Spotted 206 | . 9 12 10 11 5 13 15 45 2 2 6 . 11 23 18 24 Peak Tracking Total 12 | . 4 4 7 4 3 3 4 5 1 1 3 . 3 12 11 11 Tactical Retreats 27 | . . 5 . 2 . . 1 4 . . . . 1 5 3 6 Traps | -11 -10 -10 -10 -8 -7 -7 -6 -5 -4 -4 -4 -3 -3 -2 -2 -1 ------- Run | Jun Mat Min Sub Mat Fac Sto Fac Fac Fac Upp Upp Res DSF Res Gar Acc Traps Triggered 17 | . 1 . . 1 2 1 . 3 . . . . 1 2 1 5 Indirectly . | . . . . . . . . . . . . . . . . . Trap Hack Attempts . | . . . . . . . . . . . . . . . . . Triggered . | . . . . . . . . . . . . . . . . . Disarmed . | . . . . . . . . . . . . . . . . . Reprogrammed . | . . . . . . . . . . . . . . . . . Reused 2 | . . . . . . . . . . . . . . . 2 . Traps Extracted . | . . . . . . . . . . . . . . . . . Installed 4 | . . . . . . . . . . . . . . . 4 . Triggered 3 | . . . . . . . . . . . 1 . . . 2 . Most Traps Carried 3 | . . . . . . . . . . . . . . . 3 . Machines | -11 -10 -10 -10 -8 -7 -7 -6 -5 -4 -4 -4 -3 -3 -2 -2 -1 ---------- Run | Jun Mat Min Sub Mat Fac Sto Fac Fac Fac Upp Upp Res DSF Res Gar Acc Machines Disabled 13 | . . 2 . . . 3 . 1 1 . . . . 1 4 1 Max in Single Turn 1 | . . 1 . . . 1 . 1 1 . . . . 1 1 1 Energy Cycler 1 | . . . . . . . . . . . . . . . . 1 Machines Repaired . | . . . . . . . . . . . . . . . . . Machines Sabotaged . | . . . . . . . . . . . . . . . . . Overloaded Fab Kills . | . . . . . . . . . . . . . . . . . Hacking | -11 -10 -10 -10 -8 -7 -7 -6 -5 -4 -4 -4 -3 -3 -2 -2 -1 --------- Run | Jun Mat Min Sub Mat Fac Sto Fac Fac Fac Upp Upp Res DSF Res Gar Acc Machines Accessed 19 | . 1 . . . 1 5 . 2 2 . . 1 . 5 1 1 Terminals 17 | . 1 . . . . 5 . 2 2 . . 1 . 4 1 1 Fabricators 1 | . . . . . 1 . . . . . . . . . . . Repair Stations . | . . . . . . . . . . . . . . . . . Recycling Units . | . . . . . . . . . . . . . . . . . Scanalyzers . | . . . . . . . . . . . . . . . . . Garrison Access 1 | . . . . . . . . . . . . . . 1 . . Total Hacks 54 | . 2 . . . 1 15 . 5 4 . . 2 . 19 5 1 Successful 25 | . 1 . . . 1 7 . 1 2 . . 1 . 11 1 . Failed 28 | . . . . . . 8 . 4 2 . . 1 . 8 4 1 Catastrophic 7 | . . . . . . 2 . 2 1 . . . . . 1 1 Database Lockouts 1 | . 1 . . . . . . . . . . . . . . . Manual 24 | . 3 . . . . 3 . 3 2 . . . . 12 1 . Terminals 52 | . 2 . . . . 15 . 5 4 . . 2 . 18 5 1 Fabricators 1 | . . . . . 1 . . . . . . . . . . . Repair Stations . | . . . . . . . . . . . . . . . . . Recycling Units . | . . . . . . . . . . . . . . . . . Scanalyzers . | . . . . . . . . . . . . . . . . . Garrison Access 1 | . . . . . . . . . . . . . . 1 . . Terminal Hacks 15 | . 1 . . . . 5 . . . . . 1 . 7 1 . Record 1 | . . . . . . 1 . . . . . . . . . . Part Schematic 1 | . 1 . . . . . . . . . . . . . . . Open Door 3 | . . . . . . 3 . . . . . . . . . . Open DSF 1 | . . . . . . . . . . . . 1 . . . . Level Access Points 1 | . . . . . . . . . . . . . . 1 . . Branch Access Points 1 | . . . . . . . . . . . . . . 1 . . Emergency Access Points 3 | . . . . . . . . . . . . . . 2 1 . Security Status 1 | . . . . . . . . . . . . . . 1 . . Patrol Status 1 | . . . . . . . . . . . . . . 1 . . Zone Layout 2 | . . . . . . 1 . . . . . . . 1 . . Fabricator Hacks 1 | . . . . . 1 . . . . . . . . . . . Build 1 | . . . . . 1 . . . . . . . . . . . Repair Station Hacks . | . . . . . . . . . . . . . . . . . Recycling Unit Hacks . | . . . . . . . . . . . . . . . . . Scanalyzer . | . . . . . . . . . . . . . . . . . Garrison Access Hacks 1 | . . . . . . . . . . . . . . 1 . . Unlock Access 1 | . . . . . . . . . . . . . . 1 . . Unauthorized Hacks 8 | . . . . . . 2 . 1 2 . . . . 3 . . Terminals 8 | . . . . . . 2 . 1 2 . . . . 3 . . Track 2 | . . . . . . 1 . . . . . . . 1 . . Botnet 5 | . . . . . . 1 . 1 2 . . . . 1 . . Detonate 1 | . . . . . . . . . . . . . . 1 . . Fabricators . | . . . . . . . . . . . . . . . . . Repair Stations . | . . . . . . . . . . . . . . . . . Recycling Units . | . . . . . . . . . . . . . . . . . Scanalyzers . | . . . . . . . . . . . . . . . . . Garrison Access . | . . . . . . . . . . . . . . . . . Data Cores Recovered . | . . . . . . . . . . . . . . . . . Used . | . . . . . . . . . . . . . . . . . Hacking Detections 16 | . 1 . . . 1 3 . 2 2 . . . . 5 1 1 Full Trace Events . | . . . . . . . . . . . . . . . . . Feedback Events . | . . . . . . . . . . . . . . . . . Feedback Blocked . | . . . . . . . . . . . . . . . . . Robot Schematics Acquired . | . . . . . . . . . . . . . . . . . Robots Built . | . . . . . . . . . . . . . . . . . Authchips . | . . . . . . . . . . . . . . . . . Time . | . . . . . . . . . . . . . . . . . Total Robot Build Rating . | . . . . . . . . . . . . . . . . . Part Schematics Acquired 1 | . 1 . . . . . . . . . . . . . . . Parts Built 1 | . . . . . 1 . . . . . . . . . . . Authchips . | . . . . . . . . . . . . . . . . . Time 76 | . . . . . 76 . . . . . . . . . . . Total Part Build Rating 5 | . . . . . 5 . . . . . . . . . . . Parts Repaired . | . . . . . . . . . . . . . . . . . Time . | . . . . . . . . . . . . . . . . . Parts Recycled . | . . . . . . . . . . . . . . . . . Recycled Matter . | . . . . . . . . . . . . . . . . . Retrieved Matter . | . . . . . . . . . . . . . . . . . Retrieved Components . | . . . . . . . . . . . . . . . . . Parts Scanalyzed . | . . . . . . . . . . . . . . . . . Part Schematics Acquired . | . . . . . . . . . . . . . . . . . Parts Damaged . | . . . . . . . . . . . . . . . . . Bothacking | -11 -10 -10 -10 -8 -7 -7 -6 -5 -4 -4 -4 -3 -3 -2 -2 -1 ------------ Run | Jun Mat Min Sub Mat Fac Sto Fac Fac Fac Upp Upp Res DSF Res Gar Acc Used RIF Installer . | . . . . . . . . . . . . . . . . . Robots Hacked . | . . . . . . . . . . . . . . . . . Non-combat . | . . . . . . . . . . . . . . . . . Combat . | . . . . . . . . . . . . . . . . . Robot Hacks Applied . | . . . . . . . . . . . . . . . . . Relay Couplers Released . | . . . . . . . . . . . . . . . . . Fabnet Peak Effective % . | . . . . . . . . . . . . . . . . . Robots Rewired . | . . . . . . . . . . . . . . . . . Allies Hacked . | . . . . . . . . . . . . . . . . . Hacks Repelled . | . . . . . . . . . . . . . . . . . Allies | -11 -10 -10 -10 -8 -7 -7 -6 -5 -4 -4 -4 -3 -3 -2 -2 -1 -------- Run | Jun Mat Min Sub Mat Fac Sto Fac Fac Fac Upp Upp Res DSF Res Gar Acc Total Allies . | . . . . . . . . . . . . . . . . . Largest Group . | . . . . . . . . . . . . . . . . . Highest-Rated Group . | . . . . . . . . . . . . . . . . . Highest-Rated Ally . | . . . . . . . . . . . . . . . . . Total Orders . | . . . . . . . . . . . . . . . . . Ally Attacks . | . . . . . . . . . . . . . . . . . Total Damage . | . . . . . . . . . . . . . . . . . Kills . | . . . . . . . . . . . . . . . . . Allies Corrupted . | . . . . . . . . . . . . . . . . . Allies Melted . | . . . . . . . . . . . . . . . . . Intel | -11 -10 -10 -10 -8 -7 -7 -6 -5 -4 -4 -4 -3 -3 -2 -2 -1 ------- Run | Jun Mat Min Sub Mat Fac Sto Fac Fac Fac Upp Upp Res DSF Res Gar Acc Robot Analysis Total . | . . . . . . . . . . . . . . . . . Derelict Logs Recovered 4 | . . . 2 . . . . . . 1 1 . . . . . Drone Launches . | . . . . . . . . . . . . . . . . . Drone Recoveries . | . . . . . . . . . . . . . . . . . Exploration | -11 -10 -10 -10 -8 -7 -7 -6 -5 -4 -4 -4 -3 -3 -2 -2 -1 ------------- Run | Jun Mat Min Sub Mat Fac Sto Fac Fac Fac Upp Upp Res DSF Res Gar Acc Turns Passed 9655 | 60 514 552 358 408 772 560 600 1688 302 1714 539 430 272 360 190 336 Spaces Moved 5680 | 48 377 418 244 174 372 239 256 618 130 882 197 182 148 579 239 577 Core 513 | 2 . . . . . . . . . . . . . . 44 467 Treads 8 | . . . . . . 1 7 . . . . . . . . . Legs 24 | . . . . . . . . . . . . . 24 . . . Wheels 4167 | 46 377 418 244 174 372 238 249 618 130 882 197 182 40 . . . Hover 968 | . . . . . . . . . . . . . 84 579 195 110 Flight . | . . . . . . . . . . . . . . . . . Fastest Speed 45 | 50 100 105 105 150 150 140 160 120 165 180 235 235 45 45 48 50 Average Speed 129 | 97 105 105 135 150 152 154 162 139 170 190 235 235 123 49 51 51 Slowest Speed 320 | 100 130 135 180 150 165 320 246 175 180 250 235 235 260 51 60 60 Overloaded Moves . | . . . . . . . . . . . . . . . . . Propulsion Burnouts . | . . . . . . . . . . . . . . . . . Robots Hopped . | . . . . . . . . . . . . . . . . . Cave-ins Triggered . | . . . . . . . . . . . . . . . . . Exploration Rate (%) 34 | 4 54 87 15 23 11 45 7 19 3 96 40 5 89 20 39 25 Regions Visited 16 Branch Regions 5 Pre-discovered Areas . | . . . . . . . . . . . . . . . . . Known Exits Taken 3 | . . . . 1 . . . . . . . 1 . 1 . . Unknown Exits Taken 11 | 1 1 1 1 . 1 1 1 1 1 1 1 . . . . . Scrap Searched 7 | . . 3 . . . . . . . 4 . . . . . . Spaces Dug 1 | . . . . . . . . . . . . . . . . 1 Terrain Destroyed 373 | . . 58 42 4 . 25 . 1 2 2 7 . 191 35 . 6 Melee 1 | . . . . . . . . . . . . . . . . 1 Projectile 16 | . . . . 4 . . . 1 2 2 7 . . . . . AOE 356 | . . 58 42 . . 25 . . . . . . 191 35 . 5 Terrain Rammed . | . . . . . . . . . . . . . . . . . Walls Destroyed . | . . . . . . . . . . . . . . . . . Machines Disabled . | . . . . . . . . . . . . . . . . . Actions | -11 -10 -10 -10 -8 -7 -7 -6 -5 -4 -4 -4 -3 -3 -2 -2 -1 --------- Run | Jun Mat Min Sub Mat Fac Sto Fac Fac Fac Upp Upp Res DSF Res Gar Acc Total 7403 | 58 458 482 266 300 567 384 370 1250 199 893 241 185 189 650 301 610 Wait 1076 | 1 37 18 10 88 131 50 73 481 59 2 25 . 6 61 30 4 Move 5665 | 47 376 417 243 173 371 238 255 617 129 881 196 181 147 579 238 577 Hop . | . . . . . . . . . . . . . . . . . Pick Up 106 | 4 18 5 5 12 12 18 1 14 3 . 2 2 . 1 4 5 Fast Attach 75 | 6 3 3 1 . 8 12 1 15 1 1 3 . 12 6 1 2 Attach 55 | . 2 4 1 5 2 2 5 13 3 1 3 2 8 . 1 3 Detach 14 | . 1 . . 1 1 6 2 1 . . . . . . . 2 Swap 31 | . 2 5 1 . 2 6 5 6 . 1 . . 2 1 . . Drop 90 | . 2 2 1 6 17 31 3 13 . . . . 4 2 8 1 Fire 239 | . 17 28 4 13 7 21 25 82 4 7 12 . 10 . 9 . Melee 3 | . . . . . . . . . . . . . . . . 3 Ram 4 | . . . . . . . . . . . . . . . 1 3 Kick . | . . . . . . . . . . . . . . . . . Crush . | . . . . . . . . . . . . . . . . . Escape Stasis 34 | . . . . . 16 . . 8 . . . . . . . 10 Rewire 5 | . . . . . . . . . . . . . . . 5 . Trap 4 | . . . . . . . . . . . . . . . 4 . Miscellaneous 2 | . . . . 2 . . . . . . . . . . . . Route ------- -11/Junkyard -10/Materials (discovered 2 exits: [*Mat] / [*Min]) -10/Mines (discovered 3 exits: [*Mat x2] / [*Sub]) -10/Subcaves -8/Materials -7/Factory -7/Storage -6/Factory -5/Factory -4/Factory -4/Upper Caves -4/Upper Caves -3/Research -3/DSF -2/Research (discovered 6 exits: Acc x3 / Qua x2 / Gar) -2/Garrison -1/Access History --------- Turn | Location | Event 29 | -11/Junkyard | Discovered new exit (range 15) 61 | -11/Junkyard | Entered Materials 309 | -10/Materials | Build established: Mutant 435 | -10/Materials | Discovered new exit (range 8) 516 | -10/Materials | Discovered new exit (range 10) 536 | -10/Materials | Central database locked down 575 | -10/Materials | Entered Mines 593 | -10/Mines | Met a Derelict bent on vengeance 771 | -10/Mines | Core integrity fell below 50% 828 | -10/Mines | Lost 3 parts (1p1n1w) 837 | -10/Mines | Core integrity fell below 20% 1012 | -10/Mines | Discovered new exit (range 5) 1115 | -10/Mines | Discovered new exit (range 9) 1115 | -10/Mines | Discovered new exit (range 15) 1127 | -10/Mines | Entered Subcaves 1130 | -10/Subcaves | Learned 4 Materials zone layouts 1149 | -10/Subcaves | Learned location of 1 exit from Materials 1203 | -10/Subcaves | Ambushed by swarm of Subdwellers 1205 | -10/Subcaves | Ambushed by Subdwellers from Twisted Machinery 1205 | -10/Subcaves | Ambushed by Subdwellers from Twisted Machinery 1205 | -10/Subcaves | Ambushed by Subdwellers from Twisted Machinery 1205 | -10/Subcaves | Ambushed by Subdwellers from Twisted Machinery 1207 | -10/Subcaves | Ambushed by Subdweller buried in earth 1223 | -10/Subcaves | Shifting Twisted Machinery released Battle Rifle 1224 | -10/Subcaves | Shifting Twisted Machinery released Hvy. Battle Rifle 1232 | -10/Subcaves | Destroyed 10 combat bots 1240 | -10/Subcaves | Lost 3 parts (1p1n1w) 1464 | -10/Subcaves | Discovered new exit (range 15) 1485 | -10/Subcaves | Entered Materials 1485 | -8/Materials | Evolved 4 slots: Power x1, Utility x1, Weapon x2 1486 | -8/Materials | Identified exit to Factory 1777 | -8/Materials | Build established: Tank 1893 | -8/Materials | Entered Factory 1893 | -7/Factory | Evolved 2 slots: Utility x2 2001 | -7/Factory | Fabricated Gravity Neutralizer (x1) 2469 | -7/Factory | Discovered new exit (range 14) 2510 | -7/Factory | Build established: Scavenger-Tank 2665 | -7/Factory | Entered Storage 2829 | -7/Storage | Found Prototype Launcher 2830 | -7/Storage | Identified Rocket Array 2860 | -7/Storage | Found Rocket Array 2863 | -7/Storage | Found Rocket Array 2868 | -7/Storage | Found Rocket Array 2870 | -7/Storage | Found Rocket Array 2873 | -7/Storage | Found Rocket Array 2879 | -7/Storage | Found Rocket Array 2882 | -7/Storage | Found Rocket Array 2886 | -7/Storage | Found Rocket Array 2891 | -7/Storage | Found Rocket Array 2894 | -7/Storage | Found Rocket Array 2897 | -7/Storage | Found Rocket Array 3189 | -7/Storage | Discovered new exit (range 15) 3225 | -7/Storage | Entered Factory 3225 | -6/Factory | Evolved 2 slots: Propulsion x2 3393 | -6/Factory | Build established: Tank 3702 | -6/Factory | Discovered new exit (range 15) 3825 | -6/Factory | Entered another Factory area 3825 | -5/Factory | Evolved 2 slots: Utility x2 3884 | -5/Factory | Garrison activated, responded to threat 4228 | -5/Factory | Lost 3 parts (1p2w) 4273 | -5/Factory | Build established: Scavenger-Tank 4343 | -5/Factory | System corruption reached 10% 4357 | -5/Factory | Garrison activated, responded to threat 4385 | -5/Factory | Lost 4 parts (1n2u1w) 4432 | -5/Factory | Lost 3 parts (1p1u1w) 5145 | -5/Factory | Destroyed 7 combat bots 5479 | -5/Factory | Discovered new exit (range 16) 5513 | -5/Factory | Entered another Factory area 5513 | -4/Factory | Evolved 2 slots: Weapon x2 5516 | -4/Factory | Lost 3 parts (2n1w) 5570 | -4/Factory | Discovered new exit (range 12) 5815 | -4/Factory | Entered Upper Caves 5822 | -4/Upper Caves | Build established: Scavenger-Executioner 5973 | -4/Upper Caves | Encountered a Warlord checkpoint 6174 | -4/Upper Caves | Spotted B-86 Titan 7075 | -4/Upper Caves | Attracted the attention of an 0b10 checkpoint 7185 | -4/Upper Caves | Destroyed B-86 Titan 7491 | -4/Upper Caves | Discovered new exit (range 14) 7509 | -4/Upper Caves | Learned Research emergency access door positions 7529 | -4/Upper Caves | Entered another Upper Caves area 7675 | -4/Upper Caves | Encountered a Warlord checkpoint 7709 | -4/Upper Caves | Learned Research security intel 8040 | -4/Upper Caves | Discovered new exit (range 13) 8068 | -4/Upper Caves | Entered Research 8068 | -3/Research | Evolved 2 slots: Propulsion x2 8456 | -3/Research | Identified exit to DSF 8498 | -3/Research | Entered DSF 8521 | -3/DSF | Additional patrols routed to DSF 8695 | -3/DSF | Lost 19 parts (2p5n5u7w) 8736 | -3/DSF | Sterilization system engaged 8756 | -3/DSF | Ambient heat levels rising (+10) 8764 | -3/DSF | Discovered new exit (range 16) 8770 | -3/DSF | Entered Research 8770 | -2/Research | Evolved 2 slots: Utility x2 8995 | -2/Research | Build established: Wizard-Mutant 9054 | -2/Research | Spotted B-90 Cyclops 9107 | -2/Research | Identified exit to Access 9107 | -2/Research | Identified exit to Quarantine 9130 | -2/Research | Identified exit to Garrison 9130 | -2/Research | Entered Garrison 9272 | -2/Garrison | Spotted B-90 Cyclops 9274 | -2/Garrison | Triggered checkpoint 9280 | -2/Garrison | Triggered checkpoint 9306 | -2/Garrison | Core integrity fell below 50% 9315 | -2/Garrison | Discovered exit to Access (range 12) 9320 | -2/Garrison | Entered Access 9320 | -1/Access | Evolved 2 slots: Utility x2 9336 | -1/Access | Lost 12 parts (1p3n6u2w) 9445 | -1/Access | Energy Cycler disabled 9531 | -1/Access | Core integrity fell below 50% 9547 | -1/Access | Spotted B-99 Colossus 9570 | -1/Access | Search patrols dispatched 9590 | -1/Access | Build established: Mutant 9625 | -1/Access | Core integrity fell below 20% 9656 | -1/Access | Destroyed by Hellfire Trap Last Messages --------------- 09611_ Field strength at 44. 09612_ Field strength at 23. 09613_ Field strength at 9. 09614_ Stasis field depleted. 09619_ U-05 Engineer lays Concrete. 09626_ Slammed into T-07 Excavator. 09633_ Slug penetrates Wall. 09635_ C-30 ARC bursts open, deploying its payload. 09635_ H-88 Terminator unfolds itself. 09635_ Slug penetrates Wall. 09636_ Penetrated by Slug. 09638_ SQ6I=I44,< /GYU#2=JCN<|F5#2OUHA:J 09640_ Penetrated by Slug. 09646_ Slug penetrates Wall. 09647_ Door malfunctions. 09652_ Slug penetrates P-80 Master. 09654_ Penetrated by Slug. 09656_ Triggered Hellfire Trap. 09656_ An explosion rips through the floor. 09656_ Power Sword destroyed. Map ----- +----------------------------------------------------+ | ?????????????????????????????????????????????????? | | ?????????????????????????????????????????????????? | | ?????????????????????????????????????????????????? | | ?????????????????????????????????????????????????? | | ?????????????????????????????????????????????????? | | ?????????????????????????????????????????????????? | | ?????????????????????????????????????????????????? | | ?????????????????????????????????????????????????? | | ?????????????????????????????????????????????????? | | ?????????????????????????????????????????????????? | | ?????????????????????????????????????????????????? | | ?????????????????????????????????????????????????? | | ??????????????????Y###########???????????????????? | | ??????????????????? #???????????????????? | | ?????????????????? = #???????????????????? | | ????????????? ????"" #???????????????????? | | ???????????# ??#"" #???????????????????? | | ???????????# ??#"" *= #???????????????????? | | ???????????# ??#T *= #???????????????????? | | ???????????# #?#"" ] #???????????????????? | | ???????????# #?#"" #???????????????????? | | ???????????# #?#"" #???????????????????? | | ???????????# #?# #???????????????????? | | ????? ?????# #?# #???????????????????? | | ??? ?????# #?# #???????????????????? | | ??? ????## ### @ #???????????????????? | | """" ????# ##########+####??????????????????? | | """" ???# "??????????????????? | | ?" ???+ "??????????????????? | | "" ???# "??????????????????? | | ???# ###/###########??????????????????? | | ? ???## ## ???????????????????????????? | | ?? ????# ## ?????????????????????????? | | ???? ????# ## " ???????????????????????? | | ????##/##### ## """ #??????????????????????? | | ????# ## """ #??????????????????????? | | ????# ## " #??????????????????????? | | ????# ## #??????????????????????? | | ????# ######### ? #??????????????????????? | | ????# #???????#####???###??????????????????????? | | ????# #????????????????????????????????????????? | | ????+ ###### "" !#?????????????????????????????? | | ????# % T" #?????????????????????????????? | | ????# ###### #?????????????????????????????? | | ????+ #????????????????????????????????????????? | | ######+#####?????????????????????????????????????? | | # #?????????????????????????????????????? | | # #?????????????????????????????????????? | | # #?????????????????????????????????????? | | ! # #?????????????????????????????????????? | +----------------------------------------------------+ Best States ------------- Heat Dissipation 136 Coolant Potential 65 Energy Generation 39 Energy Capacity 525 Matter Stores 300 Matter Capacity 600 Sight Range 16 Terrain Scan Density 10 ECM Strength 1 Additional Mass Support 9 Base Temperature (-) 200 Armor Coverage 950 Evasion (%) 56 Recoil Reduction 3 Offensive Hacking 40 Defensive Hacking 24 Item Schematics ----------------- Huge Storage Unit | -10/Materials | Hacked Robot Schematics ------------------ None Fabricated ------------ Gravity Neutralizer | x1 | -7/Factory | Preloaded Alien Tech Used ----------------- None Achievements -------------- None Challenges ------------ None Game ------ Seed RocketHardcellNetwork Manual? 0 Play Time 01:30:26 Cumulative 206.3 hours Start 2023.11.05 @ 10:41:23 End 2023.11.05 @ 22:35:20 Sessions 4 Manual Loads 0 Difficulty Rogue Special Mode None Game No. 264 Rogue 220 Adventurer 4 Explorer 40 Win Type - Total 6 Types 5/1/0/0/0/0/0/0/0 Lore% 49 Gallery% 72 Achievement% 58 Wizard Run 0 Options --------- ASCII 0 Keyboard 0 Movement Mouse Keybinds 0 Fullscreen 1 Font 24/Smallcaps Map View 76x50 Tactical HUD 1 Map Filters NONE Filters NONE Steam 1 RUN: 5389032f-4d7f-4a43-b832-aacd27894b84